Cogmind - Beta 15 @@@ ROGUE MODE // 2025.07.10 @ 20:45:21 Player: Dingot Result: Destroyed by G-47 Trooper with Particle Gun Performance ------------- Evolutions (3) 1500 Regions Visited (6) 1200 Robots Destroyed (0) 0 Value Destroyed (0) 0 Prototype IDs (1) 20 Alien Tech Used (0) 0 Bonus (834) 834 TOTAL SCORE: 3554 Bonus ------- Pacifist 834 Cogmind --------- Core Integrity 0/700 Matter 107/300 Energy 99/100 System Corruption 2% Temperature Cool (9) Movement Core (50) Location -7/Storage Parts ------- > --- POWER (1) -------- (None) > --- PROPULSION (4) --- (None) > --- UTILITY (6) ------ (None) > --- WEAPON (2) ------- (None) > --- INVENTORY (5) ---- Transmission Jammer Peak State ------------ > --- POWER ------------ (None) > --- PROPULSION ------- (None) > --- UTILITY ---------- Decoy Drone Bay > --- WEAPON ----------- (None) > --- INVENTORY -------- (None) [Rating: 14] Favorites ----------- Power None Propulsion None Utility Decoy Drone Bay Device Decoy Drone Bay Weapon None Build | -11 -10 -10 -9 -8 -7 -7 ------- Run | Yrd Mat Min Mat Mat Fac Sto Slots Evolved 6 | . . . 2 2 2 . Power . | . . . . . . . Propulsion 2 | . . . . 2 . . Utility 4 | . . . 2 . 2 . Weapon . | . . . . . . . Parts Attached 1 | . . 1 . . . . Power . | . . . . . . . Engine . | . . . . . . . Core . | . . . . . . . Reactor . | . . . . . . . Propulsion . | . . . . . . . Treads . | . . . . . . . Leg . | . . . . . . . Wheel . | . . . . . . . Hover . | . . . . . . . Flight . | . . . . . . . Utility 1 | . . 1 . . . . Device 1 | . . 1 . . . . Storage . | . . . . . . . Processor . | . . . . . . . Hackware . | . . . . . . . Protection . | . . . . . . . Artifact . | . . . . . . . Weapon . | . . . . . . . Energy Gun . | . . . . . . . Energy Cannon . | . . . . . . . Ballistic Gun . | . . . . . . . Ballistic Cannon . | . . . . . . . Launcher . | . . . . . . . Special Weapon . | . . . . . . . Impact Weapon . | . . . . . . . Slashing Weapon . | . . . . . . . Piercing Weapon . | . . . . . . . Special Melee Weapon . | . . . . . . . Unidentified Prototypes 1 | . . 1 . . . . Parts Lost . | . . . . . . . Power . | . . . . . . . Propulsion . | . . . . . . . Utility . | . . . . . . . Weapon . | . . . . . . . Highest Loss Streak . | . . . . . . . To Critical Strikes . | . . . . . . . Average Backups . | . . . . . . 1 Power . | . . . . . . . Propulsion . | . . . . . . . Utility . | . . . . . . 1 Weapon . | . . . . . . . Tool/Special . | . . . . . . . Unused Backups 1 | . . . . . . 1 Power . | . . . . . . . Propulsion . | . . . . . . . Utility 1 | . . . . . . 1 Weapon . | . . . . . . . Tool/Special . | . . . . . . . Average Slot Usage (%) . | . . . . . . . Peak Build Rating 14 | . . 14 . . . . Average Rating . | . . . . . . . On Entrance . | . . . . . . . Naked Turns 412 | . 29 68 35 72 116 92 Heaviest Build . | . . . . . . . Greatest Support 3 | 3 3 3 3 3 3 3 Greatest Overweight (x) . | . . . . . . . Average Overweight (x) . | . . . . . . . Largest Inventory Capacity 5 | 5 5 5 5 5 5 5 Average Capacity 5 | 5 5 5 5 5 5 5 Most Carried 2 | . . 2 . . 1 1 Average Carried . | . . . . . . 1 Final Capacity 5 | 5 5 5 5 5 5 5 Final Carried 1 | . . . . . 1 1 Class Distribution -------------------- 100% | Mutant Dominant Class ---------------- Mutant | -10/Materials Mutant | -10/Mines Mutant | -9/Materials Mutant | -8/Materials Mutant | -7/Factory Mutant | -7/Storage Resources | -11 -10 -10 -9 -8 -7 -7 ----------- Run | Yrd Mat Min Mat Mat Fac Sto Matter Collected . | . . . . . . . Remotely . | . . . . . . . Salvage Created . | . . . . . . . Parts . | . . . . . . . Haulers Intercepted . | . . . . . . . Recyclers Shooed 2 | . . 2 . . . . Parts Field Recycled . | . . . . . . . Retrieved Matter . | . . . . . . . Parts Self-Destructed . | . . . . . . . Prevented . | . . . . . . . Kills | -11 -10 -10 -9 -8 -7 -7 ------- Run | Yrd Mat Min Mat Mat Fac Sto Combat Hostiles Destroyed . | . . . . . . . Classes Destroyed . | . . . . . . . Best Kill Streak . | . . . . . . . Combat Bots Only . | . . . . . . . Max Kills in Single Turn . | . . . . . . . Gunslinging . | . . . . . . . Exploded . | . . . . . . . Melee . | . . . . . . . Uniques/NPCs Destroyed . | . . . . . . . Combat | -11 -10 -10 -9 -8 -7 -7 -------- Run | Yrd Mat Min Mat Mat Fac Sto Hostile Shots Fired 114 | . . 6 2 21 31 54 Missed 45 | . . 2 1 8 14 20 Hits 69 | . . 4 1 13 17 34 Projectile 69 | . . 4 1 13 17 34 Critical Strikes 3 | . . . . 1 1 1 Damage Taken 1006 | . . 72 12 219 326 377 Core 1006 | . . 72 12 219 326 377 Absorbed by Shields 41 | . . . . . . 41 Core Remaining (%) 82 | 100 . 71 97 60 . . Volleys Fired . | . . . . . . . Largest . | . . . . . . . Hottest . | . . . . . . . Shots Fired . | . . . . . . . Gun . | . . . . . . . Cannon . | . . . . . . . Launcher . | . . . . . . . Special . | . . . . . . . Kinetic . | . . . . . . . Thermal . | . . . . . . . Explosive . | . . . . . . . Electromagnetic . | . . . . . . . Robot Hit Streak . | . . . . . . . Robot Miss Streak . | . . . . . . . Penetration Max . | . . . . . . . Secondary Targets . | . . . . . . . Shots Hit Robots . | . . . . . . . Core Hits . | . . . . . . . Critical Kills . | . . . . . . . Critical Parts Destroyed . | . . . . . . . Critical Strikes . | . . . . . . . Melee Attacks . | . . . . . . . Impact . | . . . . . . . Slashing . | . . . . . . . Piercing . | . . . . . . . Sneak Attacks . | . . . . . . . Combat Hostiles . | . . . . . . . Follow-up Attacks . | . . . . . . . Damage Inflicted 19 | . . 12 . 4 . 3 Guns . | . . . . . . . Cannons . | . . . . . . . Explosions . | . . . . . . . Melee . | . . . . . . . Ramming 19 | . . 12 . 4 . 3 Kinetic . | . . . . . . . Thermal . | . . . . . . . Explosive . | . . . . . . . Electromagnetic . | . . . . . . . Impact . | . . . . . . . Slashing . | . . . . . . . Piercing . | . . . . . . . Highest Corruption 2 | . . . . . . 2 Average Corruption 2 | . . . . . . 2 Corruption Purged . | . . . . . . . Corruption Blocked . | . . . . . . . Overload Shots . | . . . . . . . Overflow Damage . | . . . . . . . Projectiles . | . . . . . . . Explosions . | . . . . . . . Melee . | . . . . . . . Knockbacks . | . . . . . . . Impact . | . . . . . . . Kinetic . | . . . . . . . Secondary . | . . . . . . . Self-Inflicted Damage 8 | . . 5 . 2 . 1 Shots . | . . . . . . . Rammed 5 | . . 3 . 1 . 1 Targets Rammed 5 | . . 3 . 1 . 1 Kicked . | . . . . . . . Crushed . | . . . . . . . Highest Temperature . | . . . . . . . Average Temperature . | . . . . . . . Received Heat Transfer 377 | . . 18 6 126 45 182 Siege Activations . | . . . . . . . Martial Activations . | . . . . . . . Shielding Activations . | . . . . . . . Robots Disrupted . | . . . . . . . Combat Hostiles . | . . . . . . . Robots Corrupted . | . . . . . . . Combat Hostiles . | . . . . . . . Parts Fried . | . . . . . . . Impact Corruptions . | . . . . . . . Robots Melted . | . . . . . . . Combat Hostiles . | . . . . . . . Parts Melted . | . . . . . . . Heat Transferred . | . . . . . . . Parts Sabotaged . | . . . . . . . Parts Stolen . | . . . . . . . Parts Stripped . | . . . . . . . Power Chain Reactions . | . . . . . . . Alert | -11 -10 -10 -9 -8 -7 -7 ------- Run | Yrd Mat Min Mat Mat Fac Sto Maximum Alert Level . | . . . . . . . Low Security (%) 100 | 100 100 100 100 100 100 100 Level 1 . | . . . . . . . Level 2 . | . . . . . . . Level 3 . | . . . . . . . Level 4 . | . . . . . . . Level 5 . | . . . . . . . High Security . | . . . . . . . Max Security . | . . . . . . . Peak Influence 65 | . . 30 9 9 14 65 Initial 3 | . . . 3 3 . . Average 7 | . . 10 5 2 1 21 Influence Increases 147 | . . 30 9 9 24 75 Successful Hack 27 | . . . 9 9 9 . Lose Combat Pursuer 120 | . . 30 . . 15 75 Influence Decreases 92 | . . 20 10 18 24 20 Entered New Map 13 | . . . 7 6 . . Time Decay 79 | . . 20 3 12 24 20 Squads Dispatched 8 | . 3 . 1 1 2 1 Investigation 5 | . 1 . . 1 2 1 Extermination . | . . . . . . . Reinforcement 3 | . 2 . 1 . . . Assault . | . . . . . . . Garrison . | . . . . . . . Intercept . | . . . . . . . Searches Triggered . | . . . . . . . Construction Impeded . | . . . . . . . Haulers Reinforced . | . . . . . . . Active Scanning Responses . | . . . . . . . Cargo Convoy Interrupts . | . . . . . . . Stealth | -11 -10 -10 -9 -8 -7 -7 --------- Run | Yrd Mat Min Mat Mat Fac Sto Distress Signals 3 | . . . . 1 1 1 Communications Jammed . | . . . . . . . Distress Signals . | . . . . . . . Times Spotted 38 | . 3 8 2 9 8 8 Peak Tracking Total 9 | . 2 5 1 9 7 5 Tactical Retreats 3 | . . 1 . . 1 1 Traps | -11 -10 -10 -9 -8 -7 -7 ------- Run | Yrd Mat Min Mat Mat Fac Sto Traps Triggered 2 | . . . . . 1 1 Indirectly . | . . . . . . . Trap Hack Attempts . | . . . . . . . Triggered . | . . . . . . . Disarmed . | . . . . . . . Reprogrammed . | . . . . . . . Reused . | . . . . . . . Traps Extracted . | . . . . . . . Installed . | . . . . . . . Triggered . | . . . . . . . Machines | -11 -10 -10 -9 -8 -7 -7 ---------- Run | Yrd Mat Min Mat Mat Fac Sto Machines Disabled . | . . . . . . . Max in Single Turn . | . . . . . . . Machines Repaired . | . . . . . . . Machines Dismantled . | . . . . . . . Machines Sabotaged . | . . . . . . . Overloaded Fab Kills . | . . . . . . . Hacking | -11 -10 -10 -9 -8 -7 -7 --------- Run | Yrd Mat Min Mat Mat Fac Sto Machines Accessed 7 | . 1 1 1 1 2 1 Terminals 6 | . 1 . 1 1 2 1 Fabricators . | . . . . . . . Repair Stations . | . . . . . . . Recycling Units . | . . . . . . . Scanalyzers . | . . . . . . . Garrison Access . | . . . . . . . Total Hacks 16 | . 2 1 2 3 5 3 Successful 5 | . 1 1 1 1 1 . Failed 11 | . 1 . 1 2 4 3 Catastrophic 4 | . 1 . 1 1 1 . Database Lockouts . | . . . . . . . Manual 14 | . 1 . 2 3 4 4 Terminals 15 | . 2 . 2 3 5 3 Fabricators . | . . . . . . . Repair Stations . | . . . . . . . Recycling Units . | . . . . . . . Scanalyzers . | . . . . . . . Garrison Access . | . . . . . . . Terminal Hacks 5 | . 1 1 1 1 1 . Open Door 1 | . . 1 . . . . Level Access Points 3 | . . . 1 1 1 . Transport Status 1 | . 1 . . . . . Fabricator Hacks . | . . . . . . . Repair Station Hacks . | . . . . . . . Recycling Unit Hacks . | . . . . . . . Scanalyzer . | . . . . . . . Garrison Access Hacks . | . . . . . . . Unauthorized Hacks . | . . . . . . . Terminals . | . . . . . . . Fabricators . | . . . . . . . Repair Stations . | . . . . . . . Recycling Units . | . . . . . . . Scanalyzers . | . . . . . . . Garrison Access . | . . . . . . . Data Cores Recovered . | . . . . . . . Used . | . . . . . . . Hacking Detections 6 | . 1 . 1 1 2 1 Full Trace Events 5 | . 1 . . 1 2 1 Feedback Events . | . . . . . . . Feedback Blocked . | . . . . . . . Robot Schematics Acquired . | . . . . . . . Robots Built . | . . . . . . . Authchips . | . . . . . . . Time . | . . . . . . . Total Robot Build Rating . | . . . . . . . Part Schematics Acquired . | . . . . . . . Parts Built . | . . . . . . . Authchips . | . . . . . . . Time . | . . . . . . . Total Part Build Rating . | . . . . . . . Parts Repaired . | . . . . . . . Time . | . . . . . . . Parts Recycled . | . . . . . . . Recycled Matter . | . . . . . . . Retrieved Matter . | . . . . . . . Retrieved Components . | . . . . . . . Parts Scanalyzed . | . . . . . . . Part Schematics Acquired . | . . . . . . . Parts Damaged . | . . . . . . . Bothacking | -11 -10 -10 -9 -8 -7 -7 ------------ Run | Yrd Mat Min Mat Mat Fac Sto Used RIF Installer . | . . . . . . . Robots Hacked . | . . . . . . . Non-combat . | . . . . . . . Combat . | . . . . . . . Robot Hacks Applied . | . . . . . . . Relay Couplers Released . | . . . . . . . Fabnet Peak Effective % . | . . . . . . . Robots Rewired . | . . . . . . . Allies Hacked . | . . . . . . . Hacks Repelled . | . . . . . . . Allies | -11 -10 -10 -9 -8 -7 -7 -------- Run | Yrd Mat Min Mat Mat Fac Sto Total Allies . | . . . . . . . Largest Group . | . . . . . . . Highest-Rated Group . | . . . . . . . Highest-Rated Ally . | . . . . . . . Total Orders . | . . . . . . . Ally Attacks . | . . . . . . . Total Damage . | . . . . . . . Kills . | . . . . . . . Allies Corrupted . | . . . . . . . Allies Melted 1 | . . 1 . . . . Intel | -11 -10 -10 -9 -8 -7 -7 ------- Run | Yrd Mat Min Mat Mat Fac Sto Active Infowar (turns) . | . . . . . . . Robot Analysis Total . | . . . . . . . Derelict Logs Recovered 1 | . . 1 . . . . Drone Launches . | . . . . . . . Drone Recoveries . | . . . . . . . Exploration | -11 -10 -10 -9 -8 -7 -7 ------------- Run | Yrd Mat Min Mat Mat Fac Sto Turns Passed 422 | 9 29 69 35 72 116 92 Spaces Moved 770 | 18 57 126 62 141 227 139 Core 770 | 18 57 126 62 141 227 139 Treads . | . . . . . . . Legs . | . . . . . . . Wheels . | . . . . . . . Hover . | . . . . . . . Flight . | . . . . . . . Fastest Speed 50 | 50 50 50 50 50 50 50 Average Speed 50 | 50 50 50 50 50 50 50 Slowest Speed 50 | 50 50 50 50 50 50 50 Overloaded Moves . | . . . . . . . Propulsion Burnouts . | . . . . . . . Robots Hopped . | . . . . . . . Potential Cave-ins . | . . . . . . . Cave-ins Triggered . | . . . . . . . Exploration Rate (%) 15 | 3 17 36 9 14 9 23 Regions Visited 6 Branch Regions 2 Pre-discovered Areas 1 | . . 1 . . . . Known Exits Taken 2 | . . . 1 1 . . Unknown Exits Taken 4 | 1 1 1 . . 1 . Scrap Searched . | . . . . . . . Spaces Dug . | . . . . . . . Terrain Destroyed . | . . . . . . . Melee . | . . . . . . . Projectile . | . . . . . . . AOE . | . . . . . . . Terrain Rammed . | . . . . . . . Walls Destroyed . | . . . . . . . Machines Disabled . | . . . . . . . Actions | -11 -10 -10 -9 -8 -7 -7 --------- Run | Yrd Mat Min Mat Mat Fac Sto Total 799 | 17 56 131 65 141 228 161 Wait 17 | . . . 4 . 1 12 Move 764 | 17 56 125 61 140 226 139 Hop . | . . . . . . . Pick Up 2 | . . 1 . . 1 . Fast Attach . | . . . . . . . Attach 1 | . . 1 . . . . Detach . | . . . . . . . Swap . | . . . . . . . Drop 1 | . . 1 . . . . Fire . | . . . . . . . Melee . | . . . . . . . Ram 5 | . . 3 . 1 . 1 Kick . | . . . . . . . Crush . | . . . . . . . Escape Stasis 9 | . . . . . . 9 Rewire . | . . . . . . . Trap . | . . . . . . . Miscellaneous . | . . . . . . . Route ------- -11/Scrapyard -10/Materials -10/Mines -9/Materials (discovered 3 exits: *Mat x3) -8/Materials (discovered 3 exits: *Fac x3) -7/Factory (discovered 5 exits: Fac x4 / *Sto) -7/Storage History --------- Turn | Location | Event 4 | -11/Scrapyard | Discovered new exit (range 13) 10 | -11/Scrapyard | Entered Materials 36 | -10/Materials | Discovered new exit (range 6) 39 | -10/Materials | Entered Mines 71 | -10/Mines | Joined a pair of Derelicts in attacking an 0b10 outpost 91 | -10/Mines | Learned location of Zion (-7) 91 | -10/Mines | Discovered new exit (range 7) 99 | -10/Mines | Found the Drone Emporium 100 | -10/Mines | Found Prototype Device 101 | -10/Mines | Identified Decoy Drone Bay 108 | -10/Mines | Entered Materials 108 | -9/Materials | Evolved 2 slots: Utility x2 129 | -9/Materials | Identified exit to Materials 143 | -9/Materials | Entered another Materials area 143 | -8/Materials | Evolved 2 slots: Propulsion x2 165 | -8/Materials | Identified exit to Factory 215 | -8/Materials | Entered Factory 215 | -7/Factory | Evolved 2 slots: Utility x2 293 | -7/Factory | Identified exit to Factory 313 | -7/Factory | Build established: Mutant 326 | -7/Factory | Discovered new exit (range 10) 331 | -7/Factory | Entered Storage 349 | -7/Storage | Core integrity fell below 50% 412 | -7/Storage | Core integrity fell below 20% 423 | -7/Storage | Destroyed by G-47 Trooper with Particle Gun Last Messages --------------- payload. 00347_ G-50 Soldier unfolds itself. 00347_ G-47 Trooper unfolds itself. 00348_ Field strength at 65. 00349_ Field strength at 54. 00350_ Field strength at 40. 00351_ Field strength at 29. 00351_ Critical hit (Burn: +27). 00352_ Field strength at 15. 00353_ Field strength at 4. 00353_ Stasis field depleted. 00368_ Connecting with Terminal... 00368_ Current location identified: Storage 00368_ ALERT: Suspicious activity at Terminal S004. Dispatching Investigation squad. 00380_ K-01 Serf collects debris. 00391_ Slammed into R-06 Scavenger. 00391_ Destabilizing: System corrupted (+2). 00391_ R-06 Scavenger sends out distress signal. 00415_ Connecting with Door Terminal... Map ----- +----------------------------------------------------+ | | | | | | | | | | | | | | | | | | | | | | | | | ?????????????##########??????????????????????????? | | ?????????????# #??????????????????????????? | | ?????????????# """ #??????????????????????????? | | ?????????????# """??" #??????????????????????????? | | ????????????????????" #????"?????????????????????? | | ????????????????????" #??? "?????????????????????? | | ?????????????#???"""" #### "?????????????????????? | | ?????????????# """ # + "?????????????????????? | | ?????????????# + # """ #?????????????? | | ?????????????# # + #?????????????? | | ?????????????#####/#### #############???????????? | | ????????"####### Y### # !] #???????????? | | ????????" # !] T #???????????? | | ????????" ] gg @ ] #???????????? | | ????????"#T##### ### # """ ????????????? | | ?????????###?########## # ! """??????????????? | | ?????????????# + + """??????????????? | | ?????????????# """ # # #???????????? | | ?????????????# """ # #??#########????????????? | | ?????????????# """ # #???????????????????????? | | ?????###?????# # #???????????????????????? | | ????? #?????# """ # #???????????????????????? | | ????? #?#+#?# """ # #???????????????????????? | | ????? #? ?# """ # +???????????????????????? | | ?????" +? ?+ ####???????????????????????? | | "????" #? ?###+######??????????????????????????? | | "???" #?# #???# #???????????????????????????????? | | """" #?# #???# #???????????????????????????????? | | #?# #???# ####????????????????????????????? | | #?# #???# +????????????????????????????? | | ###+####?# #???# #????????????????????????????? | | # #### ##### #????????????????????????????? | | # " #????????????????????????????? | | # "T ####### #????????????????????????????? | | # #?????# #????????????????????????????? | | # #?????# ?????????????????????????? | | ## ##?????#+#####+#####????????????????????????? | | ?# ^ #?????? ??????????????????????????????????? | +----------------------------------------------------+ Best States ------------- Heat Dissipation 34 Energy Generation 5 Energy Capacity 100 Matter Stores 110 Matter Capacity 300 Sight Range 16 Terrain Scan Density 10 Evasion (%) 50 Item Schematics ----------------- None Robot Schematics ------------------ None Fabricated ------------ Nothing Repaired ---------- Nothing Alien Tech Used ----------------- None Achievements -------------- None Challenges ------------ None Game ------ Seed LightpackLightDrive Manual? 0 Play Time 00:12:00 Cumulative 18.5 hours Start 2025.07.10 @ 20:35:01 End 2025.07.10 @ 20:45:21 Sessions 1 Manual Loads 0 Difficulty Rogue Special Mode None Game No. 24 Rogue 24 Adventurer 0 Explorer 0 Win Type - Total 0 Types 0/0/0/0/0/0/0/0/0/0 Lore% 17 Gallery% 18 Achievement% 24 Wizard Run 0 Options --------- Layout 1 ASCII 0 Keyboard 0 Movement Mouse Keybinds 0 Fullscreen 1 Font 24/Smallcaps Map View 50x35 Zoom Use 0% Tactical HUD 1 Map Filters NONE Filters NONE Steam 1 RUN: 30da98cf-6739-4579-8a43-8637b01b4710